bitfinex/quotes_ETHUSD_20250329
["timestamp","ask_amount","ask_price","bid_price","bid_amount"]
[1743254567259,0.11369718,1864.2,1864.1,0.05]
[1743254567453,0.11369718,1864.2,1864.1,5.382]
[1743254570068,0.11369718,1864.2,1864.1,0.05]
[1743254570236,3.10347404,1864.2,1864.1,5.373]
[1743254570436,0.11369718,1864.2,1864.1,5.373]
[1743254573765,3.10347404,1864.2,1864.1,5.373]
[1743254577756,3.10347404,1864.2,1864.1,5.349]
[1743254578880,3.10347404,1864.2,1864.1,0.05]
[1743254580357,3.10347404,1864.2,1864.1,5.41451]
[1743254580557,3.10347404,1864.2,1864.1,7.793839]
[1743254580753,0.11369718,1864.2,1864.1,7.793839]
[1743254581155,0.11369718,1864.2,1864.1,7.84747615]
[1743254581366,2.98977686,1864.6,1864.5,5.36336]
[1743254581568,3.39986093,1864.6,1864.5,10.65636]
[1743254582265,3.39986093,1864.6,1864.5,5.293]
[1743254583665,2.98977686,1864.6,1864.5,10.65636]
[1743254584060,2.98977686,1864.6,1864.5,12.33552]
[1743254584277,2.98977686,1864.7,1864.6,5.36308]
[1743254585267,3.39219581,1864.8,1864.6,5.36308]
[1743254585473,3.09058057,1864.8,1864.5,17.69869]
[1743254586073,3.09058057,1864.8,1864.6,5.36303]
[1743254586585,0.10080371,1864.8,1864.6,5.36303]
[1743254586766,0.10080371,1864.8,1864.6,7.132866]
[1743254586966,2.98977686,1864.8,1864.6,7.132866]
[1743254587160,2.98977686,1864.8,1864.6,1.769836]
[1743254587388,0.10141855,1864.7,1864.6,1.769836]
[1743254587601,3.09119541,1864.7,1864.6,1.769836]
[1743254587765,3.09119541,1864.7,1864.5,16.01942]
[1743254587960,3.09119541,1864.7,1864.5,10.65617]
[1743254588267,2.98977686,1864.7,1864.5,5.293]
[1743254588470,2.98977686,1864.6,1864.5,5.293]
[1743254589391,2.98977686,1864.6,1864.4,5.36352]
[1743254589570,2.98977686,1864.6,1864.4,10.63252]
[1743254589771,2.98977686,1864.5,1864.4,5.36352]
[1743254589967,5.36423,1864.2,1864.1,0.05]
[1743254590216,3.28875455,1864.5,1864.1,0.05]
[1743254590217,6.28875455,1864.5,1864.1,0.05]
[1743254590420,3.0,1864.5,1864.2,6.16913]
[1743254590897,3.0,1864.5,1864.3,5.36392]
[1743254591109,3.0,1864.5,1864.2,6.16913]
[1743254592201,3.0,1864.5,1864.2,11.53324]
[1743254592399,3.0,1864.5,1864.2,6.16913]
[1743254592606,3.0,1864.5,1864.3,5.292]
[1743254593195,14.41285686,1864.6,1864.3,5.292]
[1743254593396,8.35285686,1864.6,1864.3,5.292]
[1743254593700,8.35285686,1864.6,1864.3,5.289]
[1743254594381,2.98977686,1864.4,1864.1,0.05]
[1743254594587,2.98977686,1864.3,1864.1,5.337]
[1743254594989,2.98977686,1864.3,1864.1,0.05]
[1743254595477,2.98977686,1864.3,1864.1,5.337]
[1743254596803,3.39538502,1864.3,1864.1,5.337]
[1743254597007,3.39538502,1864.3,1864.1,5.331]
[1743254597604,0.40560816,1864.3,1864.1,5.331]
[1743254597804,8.35354686,1864.4,1864.1,5.331]
[1743254598012,2.98977686,1864.4,1864.1,10.69542]
[1743254599510,8.35343686,1864.4,1864.1,10.69542]
[1743254600104,2.98977686,1864.4,1864.1,10.69542]
[1743254601706,3.0,1864.6,1864.3,6.11407]
[1743254601910,4.04491029,1864.7,1864.4,5.36365]
[1743254602211,0.41160527,1864.8,1864.5,10.63323]
[1743254602389,3.0,1864.8,1864.5,10.63323]
[1743254602589,3.0,1864.8,1864.5,15.9964]
[1743254602788,3.0,1864.8,1864.5,10.63317]
[1743254602988,5.98977686,1864.8,1864.5,10.63317]
[1743254603207,6.38641379,1864.8,1864.5,10.63317]
[1743254603413,2.98977686,1864.7,1864.5,5.27]
[1743254604299,2.98977686,1864.7,1864.5,10.63336]
[1743254604505,6.38641379,1864.8,1864.5,10.63336]
[1743254604813,3.39663693,1864.8,1864.6,5.36303]
[1743254605012,3.39663693,1864.8,1864.6,5.36291]
[1743254605512,3.39663693,1864.8,1864.6,6.11331]
[1743254605877,0.39663693,1864.8,1864.6,6.11331]
[1743254606076,2.98977686,1864.9,1864.6,6.11331]
[1743254606582,4.05575797,1865.0,1864.6,6.11331]
[1743254606901,4.05575797,1865.0,1864.7,5.36267]
[1743254608720,1.46087501,1865.0,1864.8,5.36249]
[1743254608881,1.06598111,1865.0,1864.8,5.36249]
[1743254609209,1.06598111,1865.0,1864.9,5.36221]
[1743254609583,1.06598111,1865.0,1864.9,10.61921]
[1743254609784,0.40187068,1865.1,1865.0,5.36193]
[1743254610013,2.98977686,1865.3,1865.0,5.36193]
[1743254610191,2.98977686,1865.2,1865.0,5.36193]
[1743254610378,2.98977686,1865.1,1864.9,5.257]
[1743254611821,5.36159,1865.2,1864.9,10.61921]
[1743254612009,2.98977686,1865.1,1864.9,10.61921]
[1743254612619,2.98977686,1865.1,1864.9,5.257]
[1743254612785,2.98977686,1865.0,1864.8,5.36227]
[1743254612988,2.98977686,1865.0,1864.8,5.251]
[1743254614521,2.98977686,1865.0,1864.8,10.61347]
[1743254617502,2.98977686,1865.0,1864.8,15.97577]
[1743254618527,2.98977686,1865.1,1864.9,5.36221]
[1743254618854,2.98977686,1865.1,1865.0,5.36193]
[1743254619058,2.98977686,1865.1,1864.9,5.36221]
[1743254622112,2.98977686,1865.1,1864.9,5.3621]
[1743254622835,2.98977686,1865.1,1864.8,10.61346]
[1743254623015,2.98977686,1865.1,1864.9,5.36215]
[1743254633741,2.98977686,1865.1,1864.8,15.97583]
[1743254634544,2.98977686,1865.1,1864.8,10.72483]
[1743254634749,2.98977686,1865.1,1864.8,15.91783]
[1743254635239,2.98977686,1864.9,1864.8,5.191]
[1743254635672,2.98977686,1864.9,1864.6,10.72587]
[1743254635866,2.98977686,1864.9,1864.7,5.191]
[1743254640574,2.98977686,1864.9,1864.7,10.55375]
[1743254641659,2.98977686,1864.9,1864.7,5.191]
[1743254644477,2.98977686,1864.9,1864.7,10.55377]
[1743254644676,0.40415756,1865.2,1865.1,5.36164]
[1743254644871,0.40415756,1865.2,1865.0,5.36184]
[1743254645178,2.98977686,1865.3,1865.0,5.36184]
[1743254646378,2.98977686,1865.3,1865.0,5.36176]
[1743254647082,3.38561937,1865.3,1865.0,5.36176]
[1743254647284,3.38561937,1865.3,1865.0,10.72348]
[1743254647451,0.39584251,1865.3,1865.1,6.11978]
[1743254647651,7.04073329,1865.4,1865.1,6.11978]
[1743254647879,5.98977686,1865.4,1865.1,6.11978]
[1743254648547,2.98977686,1865.4,1865.1,6.11978]
[1743254648753,2.98977686,1865.3,1865.1,6.11978]
[1743254649584,2.98977686,1865.4,1865.1,6.11978]
[1743254649785,2.98977686,1865.3,1865.1,6.11978]
[1743254650657,2.98977686,1865.3,1865.1,0.7582]
[1743254650865,6.8037906,1865.5,1865.1,6.1197]
[1743254651079,2.98977686,1865.3,1865.1,6.1197]
[1743254652597,2.98977686,1865.4,1865.1,7.3750014]
[1743254652806,2.98977686,1865.4,1865.2,5.36129]
[1743254653095,0.39390705,1865.5,1865.3,5.36093]
[1743254653296,4.07974374,1865.6,1865.3,5.36093]
[1743254655903,4.48823941,1865.6,1865.3,5.36093]
[1743254656903,0.40849567,1865.6,1865.4,6.14113]
[1743254657096,8.34954686,1865.8,1865.4,7.291336]
[1743254657497,2.98977686,1865.8,1865.5,5.36046]
[1743254657709,1.06093837,1865.7,1865.5,5.36046]
[1743254657907,2.98977686,1865.8,1865.5,5.36046]
[1743254658807,8.34947686,1865.8,1865.4,7.291336]
[1743254658981,2.98977686,1865.7,1865.4,6.14113]
[1743254659282,2.98977686,1865.7,1865.4,0.7804]
[1743254659283,8.34973686,1865.7,1865.4,0.7804]
[1743254659490,2.98977686,1865.6,1865.4,0.7804]
[1743254659689,8.74873606,1865.7,1865.4,0.7804]
[1743254659989,3.38877606,1865.7,1865.4,6.14115]
[1743254660710,3.0,1865.9,1865.6,5.36002]
[1743254660914,3.0,1865.9,1865.7,0.8024]
[1743254661621,5.98977686,1865.9,1865.7,0.8024]
[1743254661998,5.98977686,1865.9,1865.7,6.16214]
[1743254662500,2.98977686,1865.9,1865.7,6.16214]
[1743254663535,2.98977686,1865.9,1865.7,0.8024]
[1743254663830,2.98977686,1865.9,1865.6,5.36002]
[1743254663831,8.64848455,1865.8,1865.6,5.177]
[1743254663997,2.98977686,1865.7,1865.6,5.177]
[1743254664526,5.36044,1865.6,1865.4,5.182]
[1743254664820,8.34969686,1865.7,1865.5,5.36049]
[1743254664821,5.98977686,1865.7,1865.5,5.36049]
[1743254665399,2.98977686,1865.6,1865.4,5.182]
[1743254665599,2.98977686,1865.5,1865.4,5.182]
[1743254668226,5.36022,1865.6,1865.4,5.182]
[1743254668519,2.98977686,1865.5,1865.4,5.182]
[1743254669427,5.98977686,1865.5,1865.4,5.182]
[1743254674661,3.0,1865.5,1865.4,5.182]
[1743254675426,8.3608,1865.4,1864.7,0.8302]
[1743254675631,2.98977686,1864.8,1864.6,5.19]
[1743254675826,2.98977686,1864.7,1864.5,5.193]
[1743254676635,2.98977686,1864.7,1864.5,10.5563]
[1743254677075,2.98977686,1864.7,1864.5,12.231288]
[1743254677777,2.98977686,1864.8,1864.5,12.231288]
[1743254677937,2.98977686,1864.8,1864.6,5.363]
[1743254678270,2.98977686,1864.8,1864.5,12.231118]
[1743254678561,2.98977686,1864.8,1864.6,5.36307]
[1743254679135,3.0,1865.0,1864.8,5.36233]
[1743254679462,3.0,1865.0,1864.7,6.19299]
[1743254679463,5.98977686,1865.0,1864.7,6.19299]
[1743254679836,2.98977686,1864.9,1864.7,6.19299]
[1743254680033,3.0,1865.0,1864.8,5.3625]
[1743254680334,3.0,1865.0,1864.8,5.36232]
[1743254680335,5.98977686,1865.0,1864.8,5.36232]
[1743254681275,2.98977686,1865.0,1864.8,5.36232]
[1743254681465,7.57061563,1865.6,1865.0,0.8302]
[1743254681466,4.49413052,1865.6,1865.0,0.8302]
[1743254681661,4.49413052,1865.6,1864.9,10.54519]
[1743254681662,3.0,1865.5,1865.3,5.3609]
[1743254681854,3.0,1865.5,1865.3,10.5629]
[1743254682382,3.0,1865.5,1865.3,5.202]
[1743254682383,2.98977686,1865.5,1865.3,5.202]
[1743254682776,2.98977686,1865.4,1865.3,5.202]
[1743254683978,2.98977686,1865.4,1865.3,10.56306]
[1743254684275,6.39971824,1865.5,1865.3,10.56306]
[1743254684484,5.98977686,1865.5,1865.3,10.56306]
[1743254685978,2.98977686,1865.4,1865.1,5.191]
[1743254686180,2.98977686,1865.2,1865.1,5.191]
[1743254687195,2.98977686,1865.3,1865.1,15.91404]
[1743254687363,0.41135275,1865.5,1865.3,5.36091]
[1743254687565,2.98977686,1865.7,1865.5,5.36042]
[1743254687771,0.40994138,1865.8,1865.7,5.35976]
[1743254687971,0.40994138,1865.8,1865.7,6.24355421]
[1743254688369,4.50435366,1866.1,1865.9,5.35928]
[1743254688587,3.0,1866.1,1866.0,5.213]
[1743254688786,2.98977686,1866.2,1866.0,5.213]
[1743254688992,3.0,1866.1,1866.0,5.213]
[1743254689188,5.98977686,1866.1,1866.0,5.213]
[1743254689497,2.98977686,1866.2,1866.0,5.213]
[1743254690670,3.0,1866.3,1866.0,5.213]
[1743254690671,0.39680278,1866.3,1866.1,6.18694]
[1743254690869,2.98977686,1866.3,1866.1,0.8283]
[1743254691070,2.98977686,1866.2,1866.1,5.211]
[1743254691459,3.0,1866.3,1866.1,5.211]
[1743254691665,5.98977686,1866.3,1866.1,10.56954]
[1743254691865,2.98977686,1866.3,1866.1,10.56954]
[1743254692392,3.38565272,1866.3,1866.1,10.56954]
[1743254692765,2.98977686,1866.2,1866.0,5.35905]
[1743254692966,2.98977686,1866.2,1866.1,5.209]
[1743254693476,3.58875455,1866.2,1865.9,5.21]
[1743254693673,2.98977686,1866.0,1865.9,5.21]
[1743254693873,2.98977686,1866.1,1865.9,5.21]
[1743254694083,2.98977686,1866.0,1865.9,5.21]
[1743254694279,2.98977686,1866.1,1865.9,5.21]
[1743254694665,2.98977686,1866.2,1865.9,5.21]
[1743254696094,8.36137,1865.2,1864.8,0.8283]
[1743254696299,9.18756386,1865.1,1864.8,0.8283]
[1743254696593,8.35142686,1865.1,1864.8,0.8283]
[1743254696899,2.98977686,1865.1,1864.8,0.8283]
[1743254698370,8.35155686,1865.1,1864.8,0.8283]
[1743254698570,8.35155686,1865.1,1864.8,6.1233]
[1743254699291,2.98977686,1864.9,1864.8,6.1203]
[1743254699874,2.98977686,1864.9,1864.8,6.1183]
[1743254700399,5.97955372,1864.9,1864.5,0.8283]
[1743254700593,2.98977686,1864.6,1864.5,6.1203]
[1743254703878,2.98977686,1864.6,1864.5,11.48366]
[1743254705505,2.98977686,1864.6,1864.5,6.1203]
[1743254706512,2.98977686,1864.6,1864.5,11.48366]
[1743254708712,2.98977686,1864.7,1864.5,11.48366]
[1743254709287,3.0,1864.9,1864.5,7.805009]
[1743254709493,2.98977686,1864.8,1864.6,5.36288]
[1743254710018,2.98977686,1864.7,1864.6,5.36288]
[1743254710524,2.98977686,1864.7,1864.5,16.84684]
[1743254710686,2.98977686,1864.7,1864.5,11.48348]
[1743254711714,2.98977686,1864.7,1864.6,5.36308]
[1743254711898,2.98977686,1864.8,1864.7,5.36263]
[1743254712532,0.40950442,1865.0,1864.8,5.36248]
[1743254712700,2.98977686,1865.0,1864.8,6.13428]
[1743254713032,2.98977686,1864.9,1864.8,6.13428]
[1743254716129,3.0,1865.2,1864.9,5.36219]
[1743254716301,0.80999188,1865.7,1865.2,5.36113]
[1743254716504,2.98977686,1865.4,1865.3,5.36102]
[1743254716822,2.98977686,1865.4,1865.3,10.62284]
[1743254718232,2.98977686,1865.4,1865.3,5.262]
[1743254719233,2.98977686,1865.4,1865.3,10.62306]
[1743254725003,2.98977686,1865.4,1865.3,12.221479]
[1743254725904,5.76894224,1865.7,1865.3,12.221479]
[1743254726132,5.76894224,1865.7,1865.3,10.62288]
[1743254726133,2.98977686,1865.5,1865.3,10.62288]
[1743254726304,2.98977686,1865.5,1865.4,5.36078]
[1743254727838,2.98977686,1865.6,1865.5,5.36038]
[1743254728406,0.40961643,1865.8,1865.7,5.35991]
[1743254728736,2.98977686,1865.8,1865.6,5.36017]
[1743254728949,2.98977686,1865.7,1865.6,5.36017]
[1743254729107,2.98977686,1865.7,1865.6,5.896187]
[1743254729299,2.98977686,1865.7,1865.6,0.536017]
[1743254730119,1.0959655,1866.0,1865.6,5.896157]
[1743254730320,5.35934,1865.9,1865.6,5.896157]
[1743254730517,2.98977686,1865.7,1865.6,0.536017]
[1743254731001,2.98977686,1865.7,1865.6,5.896217]
[1743254731407,2.98977686,1865.8,1865.6,11.256417]
[1743254731628,2.98977686,1865.8,1865.7,6.4855517]
[1743254732031,34.441,1866.4,1865.7,6.4855517]
[1743254732032,11.41806,1866.4,1865.9,5.35906]
[1743254732235,2.98977686,1866.2,1866.0,5.35904]
[1743254732530,2.98977686,1866.2,1866.0,5.35881]
[1743254733335,0.40477891,1866.4,1866.1,10.58976]
[1743254733521,2.98977686,1866.2,1866.1,5.231]
[1743254733906,2.98977686,1866.2,1866.1,10.58976]
[1743254734617,2.98977686,1866.2,1866.1,5.231]
[1743254735306,2.98977686,1866.2,1866.1,10.58976]
[1743254735506,2.98977686,1866.2,1866.1,5.231]
[1743254735715,2.98977686,1866.2,1866.0,0.8003]
[1743254735916,2.98977686,1866.1,1865.8,10.59262]
[1743254736122,2.98977686,1865.9,1865.8,10.59262]
[1743254736319,2.98977686,1866.0,1865.9,5.35915]
[1743254736740,2.98977686,1866.1,1865.9,5.35912]
[1743254736908,2.98977686,1866.0,1865.9,5.35912]
[1743254738021,2.98977686,1866.0,1865.8,10.5925]
[1743254738220,6.41772823,1866.2,1865.8,10.5925]
[1743254738221,2.98977686,1865.9,1865.8,10.5925]
[1743254739810,2.98977686,1866.0,1865.9,5.35934]
[1743254740310,1.05923823,1866.2,1865.9,5.35934]
[1743254740533,2.98977686,1866.1,1865.9,5.35934]
[1743254741241,2.98977686,1866.1,1866.0,5.35905]
[1743254742111,1.49140282,1866.4,1866.0,10.71794]
[1743254742311,2.98977686,1866.1,1866.0,10.71794]
[1743254742645,2.98977686,1866.1,1866.0,5.35889]
[1743254743942,1.08213826,1866.4,1866.0,10.71776]
[1743254744146,2.98977686,1866.1,1866.0,10.71774]
[1743254744316,2.98977686,1866.1,1866.0,5.35887]
[1743254744714,2.98977686,1866.1,1865.9,6.14042]
[1743254744916,2.98977686,1866.1,1865.9,5.35922]
[1743254745119,2.98977686,1866.0,1865.9,5.35919]
[1743254746450,2.98977686,1866.0,1865.8,10.59262]
[1743254746754,2.98977686,1865.9,1865.8,10.59241]
[1743254747342,1.49172812,1866.4,1865.8,6.906352]
[1743254747520,2.98977686,1866.2,1866.1,5.35859]
[1743254750123,0.40745406,1866.4,1866.3,5.35819]
[1743254750455,2.98977686,1866.4,1866.3,5.35819]
[1743254752350,2.98977686,1866.4,1866.2,15.92567]
[1743254752560,0.40474321,1866.5,1866.3,5.35819]
[1743254752849,2.98977686,1866.4,1866.2,10.56731]
[1743254753042,2.98977686,1866.3,1866.2,10.56727]
[1743254753242,2.98977686,1866.5,1866.4,5.3577]
[1743254753432,3.3887173,1866.5,1866.4,5.3577]
[1743254754645,2.98977686,1866.5,1866.4,5.3577]
[1743254755041,11.41687,1866.8,1866.4,11.865029]
[1743254755235,2.98977686,1866.6,1866.4,10.71545]
[1743254755423,11.39626686,1866.9,1866.4,5.3577]
[1743254755625,2.98977686,1866.5,1866.4,5.3577]
[1743254756728,2.98977686,1866.5,1866.3,5.35818]
[1743254756937,2.98977686,1866.4,1866.3,5.2]
[1743254757229,2.98977686,1866.4,1866.3,10.55819]
[1743254761061,0.39695052,1866.6,1866.3,12.149742]
[1743254761261,2.98977686,1866.4,1866.2,10.71692]
[1743254761455,2.98977686,1866.3,1866.2,5.35846]
[1743254761663,2.98977686,1866.3,1866.2,10.56046]
[1743254761962,2.98977686,1866.4,1866.3,5.35819]
[1743254762944,2.98977686,1866.4,1865.7,5.35968]
[1743254763146,2.98977686,1866.0,1865.9,5.35934]
[1743254763696,2.98977686,1866.0,1865.8,5.208]
[1743254763842,2.98977686,1865.9,1865.8,5.208]
[1743254764027,2.98977686,1865.9,1865.6,5.208]
[1743254764232,5.36035,1865.6,1865.2,5.36129]
[1743254764462,2.98977686,1865.4,1865.3,5.36106]
[1743254765658,2.98977686,1865.4,1865.1,10.57447]
[1743254765828,2.98977686,1865.3,1865.2,5.3612]
[1743254766641,2.98977686,1865.3,1865.1,10.57147]
[1743254766642,2.98977686,1865.5,1865.3,5.36099]
[1743254766845,2.98977686,1865.5,1865.4,5.36078]
[1743254767562,2.98977686,1865.5,1865.3,5.897089]
[1743254767563,2.98977686,1865.5,1865.3,5.896989]
[1743254767766,2.98977686,1865.4,1865.2,5.36131]
[1743254767954,2.98977686,1865.3,1865.2,5.36131]
[1743254768154,2.98977686,1865.4,1865.3,5.36097]
[1743254770530,2.98977686,1865.4,1865.1,5.21]
[1743254770756,2.98977686,1865.3,1865.1,15.93303]
[1743254770957,2.98977686,1865.4,1865.3,5.36106]
[1743254771469,5.35963,1865.8,1865.3,5.36106]
[1743254771470,2.98977686,1865.5,1865.4,5.36061]
[1743254771664,2.98977686,1865.5,1865.3,7.238091]
[1743254772271,2.98977686,1865.5,1865.4,5.36078]
[1743254773270,0.40805384,1865.6,1865.4,5.36078]
[1743254773567,2.98977686,1865.5,1865.4,5.36078]
[1743254775074,2.98977686,1865.5,1865.4,6.6206671]
[1743254775744,3.40297001,1865.6,1865.4,6.6206671]
[1743254776074,2.98977686,1865.6,1865.4,6.6206671]
[1743254777170,2.98977686,1865.6,1865.3,6.16585]
[1743254777349,2.98977686,1865.4,1865.2,5.36134]
[1743254777541,2.98977686,1865.4,1865.2,5.36116]
[1743254777746,2.98977686,1865.4,1865.3,5.36106]
[1743254779974,2.98977686,1865.4,1865.2,5.36116]
[1743254780546,2.98977686,1865.4,1865.1,10.55951]
[1743254780747,2.98977686,1865.2,1865.1,5.198]
[1743254780950,2.98977686,1865.2,1864.9,6.12946]
[1743254781183,2.98977686,1865.2,1865.0,5.197]
[1743254781343,2.98977686,1865.2,1864.9,0.7674]
[1743254781544,2.98977686,1865.1,1864.9,5.36221]
[1743254781745,1.07615074,1865.3,1865.0,5.36183]
[1743254782048,2.98977686,1865.3,1865.1,5.36145]
[1743254782286,2.98977686,1865.2,1865.1,5.36145]
[1743254782503,2.98977686,1865.2,1865.0,6.12923]
[1743254782708,2.98977686,1865.1,1865.0,6.12923]
[1743254782910,2.98977686,1865.2,1865.0,6.12923]
[1743254783323,2.98977686,1865.2,1865.0,11.49098]
[1743254783475,2.98977686,1865.2,1865.0,6.12915]
[1743254784111,11.77541641,1865.4,1865.2,5.36117]
[1743254784112,2.98977686,1865.4,1865.2,5.36117]
[1743254784471,2.98977686,1865.4,1865.1,11.49027]
[1743254784724,2.98977686,1865.4,1865.2,5.36122]
[1743254785089,1.07142088,1865.5,1865.2,5.36121]
[1743254785288,4.06119774,1865.5,1865.3,5.36094]
[1743254785487,2.98977686,1865.4,1865.3,5.36094]
[1743254785673,2.98977686,1865.4,1865.2,5.36128]
[1743254785872,2.98977686,1865.4,1865.2,10.72248]
[1743254786073,2.98977686,1865.4,1865.2,5.3612]
[1743254786703,1.07142088,1865.5,1865.2,5.3612]
[1743254786998,2.98977686,1865.5,1865.3,5.36093]
[1743254788103,0.40609613,1865.6,1865.5,5.36049]
[1743254788297,1.08089222,1865.8,1865.5,5.36049]
[1743254788905,0.41267132,1865.9,1865.6,5.3602]
[1743254789070,36.0945595,1866.3,1865.8,5.35934]
[1743254789071,11.41825,1866.3,1865.8,5.35934]
[1743254789276,2.98977686,1866.0,1865.8,5.35934]
[1743254789601,5.35762,1866.5,1866.1,5.35876]
[1743254789791,5.35726,1866.7,1866.3,5.35817]
[1743254789996,2.98977686,1866.4,1866.2,5.35827]
[1743254790201,2.98977686,1866.3,1866.2,5.35827]
[1743254790400,2.98977686,1866.4,1866.2,5.35827]
[1743254790611,2.98977686,1866.3,1866.1,10.56071]
[1743254790831,2.98977686,1866.3,1866.2,5.35848]
[1743254790988,2.98977686,1866.4,1866.2,5.35848]
[1743254791336,2.98977686,1866.3,1866.1,10.56071]
[1743254791479,2.98977686,1866.3,1866.0,11.48539]
[1743254791812,2.98977686,1866.2,1866.1,5.2]
[1743254792203,2.98977686,1866.2,1866.1,10.55876]
[1743254792506,2.98977686,1866.2,1866.0,5.35894]
[1743254792700,5.35795,1866.4,1866.1,5.198]
[1743254792904,2.98977686,1866.2,1866.1,5.198]
[1743254793206,2.98977686,1866.2,1866.0,10.71788]
[1743254793411,2.98977686,1866.2,1866.0,5.35894]
[1743254794508,5.35776,1866.5,1866.0,5.3589]
[1743254794713,2.98977686,1866.1,1866.0,5.3589]
[1743254794913,2.98977686,1866.1,1865.9,5.35921]
[1743254795115,2.98977686,1866.0,1865.7,10.55667]
[1743254795285,2.98977686,1865.8,1865.7,10.55667]
[1743254795779,2.98977686,1866.0,1865.8,5.35961]
[1743254796113,2.98977686,1866.1,1866.0,5.35905]
[1743254796705,2.98977686,1866.1,1865.9,5.3592]
[1743254796917,4.03757245,1866.1,1865.9,5.3592]
[1743254797914,1.04779559,1866.1,1865.9,5.3592]
[1743254798115,4.03757245,1866.1,1865.9,5.3592]
[1743254798410,4.03757245,1866.1,1865.7,5.197]
[1743254798411,2.98977686,1866.0,1865.6,6.11749]
[1743254798614,2.98977686,1865.7,1865.4,6.1179]
[1743254798907,2.98977686,1865.5,1865.4,5.2]
[1743254799107,2.98977686,1865.6,1865.3,5.36094]
[1743254799410,3.0,1865.9,1865.6,0.7573]
[1743254799614,2.98977686,1865.8,1865.6,11.31945]
[1743254799910,2.98977686,1865.9,1865.7,5.35991]
[1743254800513,2.98977686,1865.8,1865.7,5.35991]
[1743254801915,2.98977686,1865.9,1865.7,5.35978]
[1743254802484,2.98977686,1865.9,1865.6,10.56197]
[1743254802883,2.98977686,1865.7,1865.6,5.35997]
[1743254803087,2.98977686,1865.7,1865.6,10.56097]
[1743254807019,2.98977686,1865.9,1865.6,5.201]
[1743254807219,2.98977686,1865.9,1865.7,5.35971]
[1743254807423,2.98977686,1865.9,1865.7,10.71951]
[1743254807615,2.98977686,1865.9,1865.7,5.35971]
[1743254808632,3.28875455,1865.9,1865.6,10.5592]
[1743254808796,2.98977686,1865.7,1865.6,10.5592]
[1743254811728,2.98977686,1865.7,1865.4,6.1178]
[1743254812039,1.89979441,1866.1,1865.1,5.36142]
[1743254812040,2.98977686,1865.5,1865.2,10.55433]
[1743254812220,2.98977686,1865.3,1865.2,10.55433]
[1743254812395,2.98977686,1865.3,1865.0,5.3618]
[1743254812595,2.98977686,1865.1,1865.0,10.5578]
[1743254815130,2.98977686,1865.3,1865.1,10.72296]
[1743254815629,2.98977686,1865.3,1865.1,5.36139]
[1743254815929,2.98977686,1865.3,1865.1,10.72288]
[1743254816432,3.38510132,1865.3,1865.2,5.36135]
[1743254816602,0.39532446,1865.3,1865.2,5.36135]
[1743254816800,2.98977686,1865.4,1865.2,5.36135]
[1743254817296,2.98977686,1865.4,1865.2,10.72255]
[1743254817500,2.98977686,1865.4,1865.3,5.36106]
[1743254818198,1.05667069,1865.6,1865.3,10.72193]
[1743254818405,5.35992,1865.7,1865.4,5.36062]
[1743254818406,1.05957274,1865.7,1865.4,5.36062]
[1743254818611,2.98977686,1865.5,1865.3,5.36099]
[1743254819132,2.98977686,1865.5,1865.2,11.48479]
[1743254819327,2.98977686,1865.5,1865.3,5.36104]
[1743254819630,2.98977686,1865.5,1865.4,5.36078]
[1743254820038,2.98977686,1865.6,1865.5,5.36043]
[1743254821334,2.98977686,1865.6,1865.4,10.54678]
[1743254821535,2.98977686,1865.6,1865.4,15.90738]
[1743254821743,2.98977686,1865.6,1865.5,5.36049]
[1743254822038,2.98977686,1865.6,1865.4,10.5466]
[1743254822236,2.98977686,1865.6,1865.5,5.36049]
[1743254822709,2.98977686,1865.6,1865.4,10.5466]
[1743254823243,2.98977686,1865.6,1865.2,6.12343]
[1743254823244,2.98977686,1865.5,1865.2,5.36113]
[1743254823423,2.98977686,1865.3,1865.2,5.18]
[1743254823623,2.98977686,1865.3,1865.1,5.36159]
[1743254823921,2.98977686,1865.2,1864.9,10.54518]
[1743254824130,2.98977686,1865.0,1864.9,10.54518]
[1743254824314,2.98977686,1865.1,1864.9,10.54501]
[1743254824507,2.98977686,1865.1,1865.0,5.36193]
[1743254825321,2.98977686,1865.1,1864.9,10.54501]
[1743254825522,2.98977686,1865.2,1865.0,5.36193]
[1743254826339,2.98977686,1865.2,1864.9,10.54501]
[1743254826340,2.98977686,1865.1,1864.9,15.90709]
[1743254826543,2.98977686,1865.0,1864.9,15.90709]
[1743254826721,2.98977686,1865.1,1864.9,15.90709]
[1743254828244,2.98977686,1865.1,1864.8,6.17789]
[1743254828538,2.98977686,1865.0,1864.9,5.36221]
[1743254828750,2.98977686,1865.0,1864.8,10.53939]
[1743254828917,2.98977686,1864.9,1864.8,10.53939]
[1743254831146,2.98977686,1865.0,1864.9,5.3622]
[1743254832245,2.98977686,1865.0,1864.8,10.53939]
[1743254832246,2.98977686,1865.0,1864.8,15.90169]
[1743254832445,2.98977686,1865.1,1864.9,5.36221]
[1743254833844,2.98977686,1865.1,1864.8,10.5393]
[1743254833845,2.98977686,1865.1,1864.8,15.90161]
[1743254834020,2.98977686,1865.0,1864.8,10.5393]
[1743254834525,2.98977686,1864.9,1864.8,10.5403]
[1743254834723,2.98977686,1864.9,1864.8,5.3623]
[1743254836014,2.98977686,1864.9,1864.6,5.36306]
[1743254836222,2.98977686,1864.9,1864.5,0.8155]
[1743254836223,2.98977686,1864.7,1864.5,10.54135]
[1743254836451,2.98977686,1864.6,1864.5,5.178]
[1743254836921,2.98977686,1864.6,1864.4,5.178]
[1743254837124,2.98977686,1864.5,1864.3,15.90552]
[1743254837322,2.98977686,1864.5,1864.4,5.36365]
[1743254838724,2.98977686,1864.5,1864.3,15.90556]
[1743254839218,2.98977686,1864.5,1864.4,5.36365]
[1743254839434,1.50559165,1865.3,1864.9,5.36207]
[1743254839655,2.98977686,1865.2,1865.0,5.36189]
[1743254839831,2.98977686,1865.2,1865.0,5.36172]
[1743254840725,3.39072735,1865.2,1865.0,5.36172]
[1743254840935,2.98977686,1865.2,1865.0,10.72352]
[1743254841330,2.98977686,1865.2,1865.0,5.36172]